lending/lending_fUSD_20240723
["ID","MTS","AMOUNT","RATE_DAILY","PERIOD"]
[332984155,1721726286254,4158.41830309,8.219e-05,2]
[332984158,1721726310748,150.0,0.00014142,120]
[332984159,1721726430770,150.0,0.00013548,120]
[332984160,1721726551650,150.0,0.00013943,120]
[332984162,1721726604195,244.73,9.041e-05,2]
[332984163,1721726610775,150.0,0.00015806,120]
[332984215,1721727031520,-500.0,9.486e-05,2]
[332984217,1721727031530,-250.0,9.49e-05,2]
[332984220,1721727031540,-181.04324683,9.49e-05,2]
[332984222,1721727031550,-991.0,9.559e-05,2]
[332984224,1721727031559,-1681.49366218,9.56e-05,2]
[332984231,1721727031623,-339.85299,9.56e-05,2]
[332984233,1721727031634,-288.38334782,9.56e-05,2]
[332984235,1721727031644,-408.83383112,9.566e-05,2]
[332984237,1721727031655,-789.29286824,9.566e-05,2]
[332984238,1721727031667,-8801.87330064,9.566e-05,2]
[332984239,1721727031676,-937.4533145,9.699e-05,2]
[332984240,1721727031686,-181.04324682,9.704e-05,2]
[332984241,1721727031696,-1244.53,9.704e-05,2]
[332984242,1721727031706,-200.0,9.763e-05,2]
[332984243,1721727031716,-2031.71,9.822e-05,2]
[332984244,1721727031725,-277.79,9.836e-05,2]
[332984245,1721727031735,-13605.15262271,9.845e-05,2]
[332984246,1721727031746,-1702.26819015,9.845e-05,2]
[332984247,1721727031765,-897.73918714,9.845e-05,2]
[332984248,1721727031775,-299.99,9.877e-05,2]
[332984249,1721727031784,-150.0,9.888e-05,2]
[332984250,1721727031793,-160.55403822,9.92e-05,2]
[332984251,1721727031804,-170.0,0.0001002,2]
[332984252,1721727031814,-1000.0,0.00010064,2]
[332984253,1721727031824,-150.0,0.00010599,2]
[332984254,1721727031833,-489.30677464,0.000106,2]
[332984255,1721727031845,-6990.38974753,0.000106,2]
[332984256,1721727031858,-3142.88092348,0.000106,2]
[332984257,1721727031869,-259.37769393,0.000106,2]
[332984258,1721727031880,-468.09747962,0.000106,2]
[332984259,1721727031895,-915.73098725,0.000106,2]
[332984260,1721727031917,-7599.56312683,0.000106,2]
[332984261,1721727031927,-9134.65326672,0.000106,2]
[332984262,1721727031937,-658.4187,0.000106,2]
[332984263,1721727031947,-783.0428,0.00010681,2]
[332984264,1721727031957,-160.55403821,0.0001069,2]
[332984265,1721727031966,-2424.26391628,0.000107,2]
[332984267,1721727031980,-1683.35708353,0.000107,2]
[332984301,1721727037559,-3074.74985537,0.000107,2]
[332984303,1721727037570,-3768.53644233,0.000107,2]
[332984305,1721727037581,-13696.68043749,0.000107,2]
[332984306,1721727037590,-11208.57067393,0.000107,2]
[332984307,1721727037601,-5207.04,0.000107,2]
[332984308,1721727037614,-911.9896683,0.000107,2]
[332984309,1721727037625,-1765.0,0.000107,2]
[332984310,1721727037652,-853.08727691,0.000107,2]
[332984311,1721727037664,-11081.31238087,0.000107,2]
[332984312,1721727037673,-785.20134825,0.0001078,2]
[332984313,1721727037682,-174.6373474,0.0001078,2]
[332984314,1721727037692,-1114.27991779,0.0001078,2]
[332984315,1721727037703,-1000.23086999,0.0001078,2]
[332984316,1721727037909,-880.12,0.0001078,2]
[332984317,1721727037924,-1857.14049247,0.0001078,2]
[332984318,1721727037936,-955.97027776,0.0001078,2]
[332984319,1721727037949,-4936.4916975,0.0001078,2]
[332984320,1721727037966,-1900.0,0.0001078,2]
[332984321,1721727037978,-4677.82886025,0.0001078,2]
[332984322,1721727037990,-451.57864314,0.0001078,2]
[332984323,1721727038002,-3879.31648734,0.0001078,2]
[332984324,1721727038013,-527.99648139,0.0001078,2]
[332984328,1721727039625,-86747.88162011,0.0001078,2]
[332984329,1721727039634,-163.93512621,0.0001079,2]
[332984330,1721727039645,-22017.01860142,0.000108,2]
[332984331,1721727039657,-300.0,0.000108,2]
[332984332,1721727039703,-1359.06751524,0.000108,2]
[332984333,1721727039785,-8676.32614834,0.000108,2]
[332984334,1721727039794,-4338.27385166,0.00010898,2]
[332984335,1721727039806,-663.40789983,0.00010898,2]
[332984336,1721727039868,-97963.21364851,0.00010898,2]
[332984337,1721727039877,-1000.0,0.00010898,2]
[332984338,1721727039887,-1611.94469648,0.000109,2]
[332984339,1721727039898,-24115.25185454,0.000109,2]
[332984365,1721727042696,-1673.025,0.000109,2]
[332984366,1721727042770,1367.15,8.267e-05,2]
[332984367,1721727042785,-760.07043219,0.000109,2]
[332984368,1721727042798,-295.464,0.000109,2]
[332984369,1721727042811,-5350.19999999,0.000109,2]
[332984385,1721727045693,-1367.15,0.00010531,2]
[332984386,1721727045702,-3933.18307366,0.000109,2]
[332984388,1721727045848,-1746.69492505,0.000109,2]
[332984389,1721727045860,-3057.45015923,0.000109,2]
[332984390,1721727046005,-269.24,0.000109,2]
[332984391,1721727046016,-539.88812386,0.000109,2]
[332984392,1721727046026,-129.69524923,0.000109,2]
[332985032,1721727091326,150.0,0.0001436,120]
[332985033,1721727330805,150.0,0.00014747,120]
[332985035,1721727570795,150.0,0.00014684,120]
[332985037,1721727601145,1230.43,8.219e-05,2]
[332985038,1721727682079,12367.85035857,8.219e-05,2]
[332985039,1721727810803,150.0,0.00015411,120]
[332985040,1721727930770,150.0,0.00015056,120]
[332985049,1721728051519,150.0,0.00015947,120]
[332985080,1721728208839,1168.9,8.219e-05,2]
[332985111,1721728231807,-200.0,9.792e-05,2]
[332985112,1721728231817,-250.0,9.792e-05,2]
[332985113,1721728231828,-250.0,9.808e-05,2]
[332985114,1721728231838,-150.66623924,9.888e-05,2]
[332985115,1721728231847,-64.04310967,9.896e-05,2]
[332985116,1721728231862,-105.95689033,9.896e-05,2]
[332985117,1721728231872,-447.13,9.922e-05,2]
[332985118,1721728231881,-7664.84,9.928e-05,2]
[332985119,1721728231892,-300.0,0.00010026,2]
[332985120,1721728231902,-1000.0,0.00010027,2]
[332985121,1721728231911,-205.39,0.00010344,2]
[332985122,1721728231921,-150.99,0.00010436,2]
[332985123,1721728231930,-150.0,0.00010438,2]
[332985124,1721728231939,-1168.9,0.00010468,2]
[332985125,1721728231950,-2351.2893,0.0001058,2]
[332985126,1721728231960,-212.8723,0.0001058,2]
[332985127,1721728231969,-1243.5,0.00010669,2]
[332985128,1721728231979,-299.99,0.00010669,2]
[332985129,1721728231988,-1176.03875563,0.0001067,2]
[332985130,1721728231998,-5081.86192814,0.00010679,2]
[332985131,1721728232007,-150.0,0.00010679,2]
[332985132,1721728232017,-1000.0,0.0001068,2]
[332985133,1721728232026,-100000.0,0.0001068,2]
[332985134,1721728232036,-500.0,0.0001068,2]
[332985135,1721728232045,-207.11080754,0.0001069,2]
[332985136,1721728232054,-507.3073,0.0001069,2]
[332985137,1721728232065,-2549.5628,0.0001069,2]
[332985138,1721728232075,-561.9884,0.0001069,2]
[332985139,1721728232085,-24566.6105,0.0001069,2]
[332985140,1721728232095,-1401.4409,0.0001069,2]
[332985141,1721728232105,-35465.6569,0.0001079,2]
[332985142,1721728232114,-136488.08063005,0.0001079,2]
[332985143,1721728232126,-409.18770388,0.0001079,2]
[332985144,1721728232148,-93587.24076607,0.0001079,2]
[332985145,1721728232158,-382.2977,0.0001079,2]
[332985146,1721728232167,-13388.9337,0.0001079,2]
[332985147,1721728232177,-175.99845233,0.00010898,2]
[332985148,1721728232186,-207.11080753,0.000109,2]
[332985149,1721728232196,-165.62266781,0.000109,2]
[332985150,1721728232205,-165.62266781,0.000109,2]
[332985151,1721728232215,-3000.0,0.000109,2]
[332985152,1721728232224,-1310.96234632,0.000109,2]
[332985153,1721728232233,-1058.32277017,0.000109,2]
[332985154,1721728232243,-4061.2449,0.00010932,2]
[332985155,1721728232252,-500.0,0.00010958,2]
[332985156,1721728232262,-500.0,0.00010958,2]
[332985157,1721728232272,-500.0,0.00010958,2]
[332985159,1721728232282,-500.0,0.00010958,2]
[332985161,1721728232291,-500.0,0.00010958,2]
[332985163,1721728232300,-500.0,0.00010958,2]
[332985164,1721728232310,-500.0,0.00010958,2]
[332985165,1721728232319,-500.0,0.00010958,2]
[332985166,1721728232328,-500.0,0.00010958,2]
[332985167,1721728232338,-500.0,0.00010958,2]
[332985168,1721728232347,-500.0,0.00010958,2]
[332985169,1721728232356,-500.0,0.00010958,2]
[332985170,1721728232366,-500.0,0.00010958,2]
[332985171,1721728232375,-500.0,0.00010958,2]
[332985172,1721728232387,-517.96316625,0.00010958,2]
[332985173,1721728232396,-500.0,0.00010958,2]
[332985174,1721728232406,-500.0,0.00010958,2]
[332985175,1721728232415,-575.36,0.00010958,2]
[332985176,1721728232424,-500.0,0.00010958,2]
[332985177,1721728232434,-500.0,0.00010958,2]
[332985178,1721728232444,-500.0,0.00010958,2]
[332985179,1721728232453,-500.0,0.00010958,2]
[332985180,1721728232463,-500.0,0.00010958,2]
[332985181,1721728232473,-369.78252598,0.00010958,2]
[332985182,1721728232482,-500.0,0.00010958,2]
[332985183,1721728232496,-500.0,0.00010958,2]
[332985184,1721728232506,-500.0,0.00010958,2]
[332985185,1721728232515,-500.0,0.00010958,2]
[332985186,1721728232525,-500.0,0.00010958,2]
[332985187,1721728232534,-500.0,0.00010958,2]
[332985188,1721728232543,-579.67,0.00010958,2]
[332985189,1721728232552,-500.0,0.00010958,2]
[332985190,1721728232561,-500.0,0.00010958,2]
[332985191,1721728232571,-500.0,0.00010958,2]
[332985192,1721728232581,-500.0,0.00010958,2]
[332985193,1721728232590,-500.0,0.00010958,2]
[332985194,1721728232600,-500.0,0.00010958,2]
[332985195,1721728232610,-500.0,0.00010958,2]
[332985196,1721728232619,-500.0,0.00010958,2]
[332985197,1721728232628,-500.0,0.00010958,2]
[332985198,1721728232640,-500.0,0.00010958,2]
[332985199,1721728232650,-500.0,0.00010958,2]
[332985200,1721728232659,-500.0,0.00010958,2]
[332985201,1721728232670,-500.0,0.00010958,2]
[332985202,1721728232679,-500.0,0.00010958,2]
[332985203,1721728232688,-521.74362309,0.00010958,2]
[332985204,1721728232697,-500.0,0.00010958,2]
[332985205,1721728232707,-500.0,0.00010958,2]
[332985206,1721728232716,-500.0,0.00010958,2]
[332985207,1721728232726,-500.0,0.00010958,2]
[332985208,1721728232736,-500.0,0.00010958,2]
[332985209,1721728232748,-506.18206926,0.00010958,2]
[332985210,1721728232757,-504.39599467,0.00010958,2]
[332985211,1721728232767,-500.0,0.00010958,2]
[332985212,1721728232776,-500.0,0.00010958,2]
[332985213,1721728232786,-500.0,0.00010958,2]
[332985214,1721728232795,-500.0,0.00010958,2]
[332985215,1721728232805,-500.0,0.00010958,2]
[332985216,1721728232814,-500.0,0.00010958,2]
[332985217,1721728232825,-293.45142729,0.00010958,2]
[332985218,1721728232835,-500.0,0.00010958,2]
[332985219,1721728232845,-500.0,0.00010958,2]
[332985220,1721728232854,-500.0,0.00010958,2]
[332985221,1721728232863,-204.2,0.00010958,2]
[332985222,1721728232873,-500.0,0.00010958,2]
[332985223,1721728232882,-500.0,0.00010958,2]
[332985224,1721728232892,-500.0,0.00010958,2]
[332985225,1721728232902,-500.0,0.00010958,2]
[332985226,1721728232912,-500.0,0.00010958,2]
[332985227,1721728232921,-500.0,0.00010958,2]
[332985228,1721728232931,-500.0,0.00010958,2]
[332985229,1721728232940,-500.0,0.00010958,2]
[332985230,1721728232950,-500.0,0.00010958,2]
[332985231,1721728232960,-500.0,0.00010958,2]
[332985232,1721728232970,-500.0,0.00010958,2]
[332985233,1721728232979,-500.0,0.00010958,2]
[332985234,1721728232989,-422.12027217,0.00010958,2]
[332985235,1721728232998,-500.0,0.00010958,2]
[332985236,1721728233008,-198.11,0.00010958,2]
[332985237,1721728233017,-500.0,0.00010958,2]
[332985238,1721728233027,-502.02598558,0.00010958,2]
[332985239,1721728233036,-500.0,0.00010958,2]
[332985240,1721728233045,-500.0,0.00010958,2]
[332985241,1721728233055,-500.0,0.00010958,2]
[332985242,1721728233065,-500.0,0.00010958,2]
[332985243,1721728233074,-500.0,0.00010958,2]
[332985244,1721728233085,-500.0,0.00010958,2]
[332985245,1721728233095,-500.0,0.00010958,2]
[332985246,1721728233106,-500.0,0.00010958,2]
[332985247,1721728233115,-500.0,0.00010958,2]
[332985248,1721728233125,-500.0,0.00010958,2]
[332985249,1721728233136,-500.0,0.00010958,2]
[332985250,1721728233145,-500.0,0.00010958,2]
[332985251,1721728233155,-500.0,0.00010958,2]
[332985252,1721728233168,-500.0,0.00010958,2]
[332985253,1721728233177,-500.0,0.00010958,2]
[332985254,1721728233187,-535.16,0.00010958,2]
[332985255,1721728233196,-500.0,0.00010958,2]
[332985256,1721728233206,-500.0,0.00010958,2]
[332985257,1721728233215,-500.0,0.00010958,2]
[332985258,1721728233224,-500.0,0.00010958,2]
[332985259,1721728233233,-500.0,0.00010958,2]
[332985260,1721728233243,-215.22815768,0.00010958,2]
[332985261,1721728233793,-284.77184232,0.00010958,2]
[332985262,1721728233803,-500.0,0.00010958,2]
[332985263,1721728233814,-2.95352877,0.00010958,2]
[332985264,1721728233828,-497.04647123,0.00010958,2]
[332985265,1721728233838,-256.04756488,0.00010958,2]
[332985267,1721728237803,-243.95243512,0.00010958,2]
[332985268,1721728237812,-500.0,0.00010958,2]
[332985269,1721728237822,-500.0,0.00010958,2]
[332985270,1721728237832,-0.43455597,0.00010958,2]
[332985271,1721728237843,-499.56544403,0.00010958,2]
[332985272,1721728237852,-277.59476031,0.00010958,2]
[332985273,1721728237864,-69.03867982,0.00010958,2]
[332985274,1721728237873,-335.62734368,0.00010958,2]
[332985275,1721728237883,-350.77118171,0.00010958,2]
[332985276,1721728237893,-500.0,0.00010958,2]
[332985277,1721728237902,-500.0,0.00010958,2]
[332985278,1721728237912,-500.0,0.00010958,2]
[332985279,1721728237922,-500.0,0.00010958,2]
[332985280,1721728237931,-500.0,0.00010958,2]
[332985281,1721728237940,-500.0,0.00010958,2]
[332985282,1721728237949,-500.0,0.00010958,2]
[332985283,1721728237958,-500.0,0.00010958,2]
[332985284,1721728237967,-175.31,0.00010958,2]
[332985285,1721728237976,-500.0,0.00010958,2]
[332985286,1721728237986,-350.07551548,0.00010958,2]
[332985287,1721728237996,-500.0,0.00010958,2]
[332985288,1721728238005,-500.0,0.00010958,2]
[332985289,1721728238014,-500.0,0.00010958,2]
[332985290,1721728238023,-179.7,0.00010958,2]
[332985291,1721728238033,-500.0,0.00010958,2]
[332985292,1721728238042,-500.0,0.00010958,2]
[332985293,1721728238052,-568.15,0.00010958,2]
[332985294,1721728238061,-568.15,0.00010958,2]
[332985295,1721728238070,-900.0,0.00010958,2]
[332985296,1721728238079,-284.51092207,0.00010958,2]
[332985297,1721728238088,-500.0,0.00010958,2]
[332985298,1721728238097,-547.0978401,0.00010958,2]
[332985299,1721728238106,-500.0,0.00010958,2]
[332985300,1721728238116,-500.0,0.00010958,2]
[332985301,1721728238125,-500.0,0.00010958,2]
[332985302,1721728238134,-500.0,0.00010958,2]
[332985304,1721728238144,-500.0,0.00010958,2]
[332985306,1721728238154,-500.0,0.00010958,2]
[332985308,1721728238163,-250.0,0.00010959,2]
[332985310,1721728238172,-150.0,0.00010959,2]
[332985312,1721728238182,-363.333378,0.0001099,2]
[332985314,1721728238190,-500.0,0.00010996,2]
[332985316,1721728238199,-173.81,0.00010996,2]
[332985318,1721728238208,-296.13,0.00010996,2]
[332985320,1721728238218,-500.0,0.00010996,2]
[332985322,1721728238227,-500.0,0.00010996,2]
[332985324,1721728238236,-500.0,0.00010996,2]
[332985326,1721728238245,-500.0,0.00010996,2]
[332985328,1721728238254,-525.91,0.00010996,2]
[332985330,1721728238263,-500.0,0.00010996,2]
[332985332,1721728238274,-500.0,0.00010996,2]
[332985334,1721728238285,-500.0,0.00010996,2]
[332985336,1721728238294,-500.0,0.00010996,2]
[332985337,1721728238303,-500.0,0.00010996,2]
[332985339,1721728238312,-500.0,0.00010996,2]
[332985341,1721728238323,-500.0,0.00010996,2]
[332985343,1721728238332,-500.0,0.00010996,2]
[332985345,1721728238341,-271.32024489,0.00010996,2]
[332985347,1721728238350,-500.0,0.00010996,2]
[332985349,1721728238359,-500.0,0.00010996,2]
[332985351,1721728238369,-500.0,0.00010996,2]
[332985353,1721728238378,-500.0,0.00010996,2]
[332985355,1721728238389,-500.0,0.00010996,2]
[332985357,1721728238398,-637.67,0.00010997,2]
[332985359,1721728238407,-387.6,0.00010997,2]
[332985361,1721728238416,-104.29489425,0.00010997,2]
[332985364,1721728238433,-395.70510575,0.00010997,2]
[332985366,1721728238441,-500.0,0.00010997,2]
[332985368,1721728238450,-500.0,0.00010997,2]
[332985369,1721728238459,-500.0,0.00010997,2]
[332985371,1721728238469,-29.65489425,0.00010997,2]
[332985374,1721728238482,-250.50827034,0.00010997,2]
[332985379,1721728238528,-219.83683541,0.00010997,2]
[332985381,1721728238537,-500.0,0.00010997,2]
[332985383,1721728238547,-500.0,0.00010997,2]
[332985385,1721728238556,-332.69,0.00010997,2]
[332985387,1721728238565,-500.0,0.00010997,2]
[332985388,1721728238574,-500.0,0.00010997,2]
[332985390,1721728238583,-500.0,0.00010997,2]
[332985392,1721728238593,-500.0,0.00010997,2]
[332985394,1721728238603,-500.0,0.00010997,2]
[332985396,1721728238613,-526.8937486,0.00010997,2]
[332985398,1721728238623,-500.0,0.00010997,2]
[332985400,1721728238632,-500.0,0.00010997,2]
[332985402,1721728238642,-500.0,0.00010997,2]
[332985404,1721728238653,-500.0,0.00010997,2]
[332985406,1721728238663,-500.0,0.00010997,2]
[332985408,1721728238672,-1192.94,0.00010997,2]
[332985410,1721728238682,-500.0,0.00010997,2]
[332985412,1721728238691,-500.0,0.00010997,2]
[332985414,1721728238700,-500.0,0.00010997,2]
[332985416,1721728238710,-500.0,0.00010997,2]
[332985418,1721728238720,-500.0,0.00010997,2]
[332985420,1721728238730,-500.0,0.00010997,2]
[332985422,1721728238740,-500.0,0.00010997,2]
[332985424,1721728238754,-500.0,0.00010997,2]
[332985426,1721728238763,-378.83,0.00010997,2]
[332985428,1721728238772,-500.0,0.00010997,2]
[332985430,1721728238782,-500.0,0.00010997,2]
[332985432,1721728238792,-500.0,0.00010997,2]
[332985434,1721728238802,-500.0,0.00010997,2]
[332985436,1721728238811,-500.0,0.00010997,2]
[332985460,1721728239045,-500.0,0.00010997,2]
[332985462,1721728239054,-500.0,0.00010997,2]
[332985464,1721728239064,-500.0,0.00010997,2]
[332985466,1721728239073,-500.0,0.00010997,2]
[332985468,1721728239082,-500.0,0.00010997,2]
[332985470,1721728239091,-500.0,0.00010997,2]
[332985472,1721728239100,-500.0,0.00010997,2]
[332985474,1721728239110,-568.15,0.00010997,2]
[332985476,1721728239119,-500.0,0.00010997,2]
[332985478,1721728239129,-500.0,0.00010997,2]
[332985480,1721728239138,-500.0,0.00010997,2]
[332985482,1721728239147,-367293.74838991,0.00010998,2]
[332985484,1721728239158,-265.14,0.00010998,2]
[332985486,1721728239167,-500.0,0.00010998,2]
[332985488,1721728239176,-500.0,0.00010998,2]
[332985490,1721728239186,-500.0,0.00010998,2]
[332985492,1721728239195,-494.08,0.00010998,2]
[332985494,1721728239204,-500.0,0.00010998,2]
[332985495,1721728239212,-366.24800619,0.00010998,2]
[332985497,1721728239221,-500.0,0.00010998,2]
[332985499,1721728239231,-500.0,0.00010998,2]
[332985501,1721728239241,-151.0,0.00010998,2]
[332985503,1721728239250,-304.67,0.00010998,2]
[332985505,1721728239259,-151.0,0.00010998,2]
[332985507,1721728239269,-783.136704,0.00010998,2]
[332985509,1721728239278,-783.136704,0.00010998,2]
[332985511,1721728239287,-500.0,0.00010998,2]
[332985513,1721728239296,-500.0,0.00010998,2]
[332985515,1721728239305,-500.0,0.00010998,2]
[332985517,1721728239314,-500.0,0.00010998,2]
[332985519,1721728239323,-500.0,0.00010998,2]
[332985520,1721728239332,-500.0,0.00010998,2]
[332985522,1721728239341,-500.0,0.00010998,2]
[332985524,1721728239350,-500.0,0.00010998,2]
[332985526,1721728239360,-500.0,0.00010998,2]
[332985528,1721728239369,-500.0,0.00010998,2]
[332985530,1721728239378,-500.0,0.00010998,2]
[332985532,1721728239388,-568.15,0.00010998,2]
[332985534,1721728239396,-500.0,0.00010998,2]
[332985535,1721728239405,-500.0,0.00010998,2]
[332985537,1721728239415,-1010.43605341,0.00010999,3]
[332985539,1721728239424,-1010.43605341,0.00010999,3]
[332985541,1721728239433,-1010.43605342,0.00010999,3]
[332985543,1721728239443,-1010.43605341,0.00010999,3]
[332985544,1721728239452,-210.47845723,0.00010999,2]
[332985546,1721728239462,-5943.3607613,0.00010999,2]
[332985548,1721728239471,-500.0,0.00010999,2]
[332985550,1721728239480,-440.65,0.00010999,2]
[332985552,1721728239492,-285.44,0.00010999,2]
[332985554,1721728239501,-602.42,0.00010999,2]
[332985556,1721728239511,-500.0,0.00010999,2]
[332985558,1721728239520,-500.0,0.00010999,2]
[332985560,1721728239529,-500.0,0.00010999,2]
[332985562,1721728239538,-302.26,0.00010999,2]
[332985564,1721728239548,-500.0,0.00010999,2]
[332985566,1721728239557,-500.0,0.00010999,2]
[332985568,1721728239567,-250.0,0.00010999,2]
[332985570,1721728239576,-282.97,0.00010999,2]
[332985572,1721728239586,-500.0,0.00010999,2]
[332985573,1721728239595,-500.0,0.00010999,2]
[332985575,1721728239604,-500.0,0.00010999,2]
[332985577,1721728239613,-500.0,0.00010999,2]
[332985579,1721728239623,-201.85,0.00010999,2]
[332985581,1721728239632,-500.0,0.00010999,2]
[332985583,1721728239643,-500.0,0.00010999,2]
[332985584,1721728239652,-500.0,0.00010999,2]
[332985586,1721728239662,-500.0,0.00010999,2]
[332985588,1721728239671,-500.0,0.00010999,2]
[332985590,1721728239684,-500.0,0.00010999,2]
[332985592,1721728239693,-500.0,0.00010999,2]
[332985594,1721728239703,-500.0,0.00010999,2]
[332985595,1721728239712,-500.0,0.00010999,2]
[332985596,1721728239721,-500.0,0.00010999,2]
[332985598,1721728239730,-500.0,0.00010999,2]
[332985599,1721728239739,-500.0,0.00010999,2]
[332985600,1721728239752,-500.0,0.00010999,2]
[332985601,1721728239761,-500.0,0.00010999,2]
[332985602,1721728239770,-500.0,0.00010999,2]
[332985603,1721728239779,-500.0,0.00010999,2]
[332985604,1721728239788,-500.0,0.00010999,2]
[332985605,1721728239799,-500.0,0.00010999,2]
[332985606,1721728239809,-572.14,0.00010999,2]
[332985607,1721728239818,-500.0,0.00010999,2]
[332985608,1721728239828,-500.0,0.00010999,2]
[332985609,1721728239837,-500.0,0.00010999,2]
[332985610,1721728239846,-237.13,0.00010999,2]
[332985611,1721728239855,-500.0,0.00010999,2]
[332985612,1721728239864,-500.0,0.00010999,2]
[332985613,1721728239873,-629.75,0.00010999,2]
[332985615,1721728239882,-500.0,0.00010999,2]
[332985617,1721728239894,-500.0,0.00010999,2]
[332985619,1721728239903,-500.0,0.00010999,2]
[332985621,1721728239912,-500.0,0.00010999,2]
[332985623,1721728239921,-222.53,0.00010999,2]
[332985625,1721728239930,-500.0,0.00010999,2]
[332985627,1721728239940,-500.0,0.00010999,2]
[332985628,1721728239950,-500.0,0.00010999,2]
[332985630,1721728239961,-500.0,0.00010999,2]
[332985633,1721728239971,-500.0,0.00010999,2]
[332985635,1721728239982,-500.0,0.00010999,2]
[332985637,1721728239991,-500.0,0.00010999,2]
[332985639,1721728240001,-500.0,0.00010999,2]
[332985641,1721728240010,-500.0,0.00010999,2]
[332985643,1721728240019,-500.0,0.00010999,2]
[332985645,1721728240028,-500.0,0.00010999,2]
[332985646,1721728240037,-500.0,0.00010999,2]
[332985648,1721728240047,-500.0,0.00010999,2]
[332985650,1721728240056,-500.0,0.00010999,2]
[332985652,1721728240065,-500.0,0.00010999,2]
[332985654,1721728240075,-464.2,0.00010999,2]
[332985656,1721728240084,-500.0,0.00010999,2]
[332985658,1721728240093,-500.0,0.00010999,2]
[332985660,1721728240102,-500.0,0.00010999,2]
[332985662,1721728240112,-500.0,0.00010999,2]
[332985664,1721728240121,-500.0,0.00010999,2]
[332985666,1721728240131,-500.0,0.00010999,2]
[332985668,1721728240142,-500.0,0.00010999,2]
[332985670,1721728240152,-588.72,0.00010999,2]
[332985672,1721728240161,-500.0,0.00010999,2]
[332985674,1721728240171,-500.0,0.00010999,2]
[332985676,1721728240180,-305.78,0.00010999,2]
[332985678,1721728240190,-500.0,0.00010999,2]
[332985680,1721728240199,-500.0,0.00010999,2]
[332985682,1721728240209,-500.0,0.00010999,2]
[332985684,1721728240218,-500.0,0.00010999,2]
[332985686,1721728240227,-500.0,0.00010999,2]
[332985688,1721728240236,-500.0,0.00010999,2]
[332985690,1721728240246,-500.0,0.00010999,2]
[332985692,1721728240255,-270.05,0.00010999,2]
[332985694,1721728240264,-500.0,0.00010999,2]
[332985696,1721728240274,-500.0,0.00010999,2]
[332985698,1721728240284,-500.0,0.00010999,2]
[332985700,1721728240293,-500.0,0.00010999,2]
[332985702,1721728240303,-500.0,0.00010999,2]
[332985704,1721728240312,-185.85,0.00010999,2]
[332985706,1721728240321,-500.0,0.00010999,2]
[332985708,1721728240331,-500.0,0.00010999,2]
[332985710,1721728240341,-500.0,0.00010999,2]
[332985712,1721728240351,-500.0,0.00010999,2]
[332985714,1721728240360,-500.0,0.00010999,2]
[332985717,1721728240370,-364.93,0.00010999,2]
[332985720,1721728240379,-500.0,0.00010999,2]
[332985723,1721728240388,-500.0,0.00010999,2]
[332985725,1721728240398,-500.0,0.00010999,2]
[332985729,1721728240407,-500.0,0.00010999,2]
[332985732,1721728240417,-401.56205162,0.00010999,2]
[332985735,1721728240426,-500.0,0.00010999,2]